bitfinex/quotes_SOLUSD_20250718
["timestamp","ask_amount","ask_price","bid_price","bid_amount"]
[1752852373201,0.03,175.91,175.9,16.90997808]
[1752852373371,0.03,175.91,175.9,23.2650264]
[1752852374099,0.03,175.91,175.9,17.57997808]
[1752852374273,0.03,175.91,175.9,0.67]
[1752852374475,0.03,175.91,175.9,17.57997808]
[1752852374788,0.03,175.91,175.9,23.2650264]
[1752852375796,0.03,175.91,175.9,17.57997808]
[1752852375998,0.03,175.91,175.89,16.90997808]
[1752852376210,9.33,175.91,175.87,0.71]
[1752852376417,9.33,175.91,175.9,16.90997808]
[1752852376621,9.33,175.91,175.9,17.61997808]
[1752852377126,9.33,175.91,175.9,23.3050264]
[1752852377527,0.03,175.91,175.9,23.3050264]
[1752852379312,0.03,175.91,175.9,40.21500448]
[1752852379521,0.03,175.94,175.9,54.42762528]
[1752852379698,0.03,175.94,175.93,16.90997808]
[1752852379904,0.03,175.97,175.93,17.47838596]
[1752852380099,0.03,176.01,175.96,16.90997808]
[1752852380326,0.03,176.01,176.0,16.90997808]
[1752852380798,0.2,176.04,176.0,17.61997808]
[1752852380998,0.2,176.04,176.03,22.59082793]
[1752852381506,0.2,176.04,176.03,16.90997808]
[1752852381708,0.2,176.04,176.01,0.71]
[1752852381911,0.7,176.03,175.97,0.71]
[1752852382114,17.60997808,176.03,175.98,16.90997808]
[1752852382307,5.88056443,176.04,175.99,16.90997808]
[1752852382501,0.7,176.03,175.99,16.90997808]
[1752852382918,0.2,176.04,176.0,16.90997808]
[1752852383122,0.2,176.04,176.02,16.90997808]
[1752852383323,0.2,176.04,176.03,17.61997808]
[1752852384203,0.2,176.04,176.03,34.52995616]
[1752852384526,0.2,176.04,176.03,17.61997808]
[1752852384726,8.21913689,176.14,176.03,35.09804114]
[1752852384934,5.67679027,176.16,176.13,16.90997808]
[1752852385228,6.37641462,176.17,176.14,16.90997808]
[1752852385421,0.7,176.17,176.14,16.90997808]
[1752852385731,5.67643089,176.17,176.14,16.90997808]
[1752852386035,0.7,176.2,176.14,16.90997808]
[1752852386203,0.73,176.23,176.14,17.61997808]
[1752852386408,6.404479,176.23,176.14,17.61997808]
[1752852386759,17.63997808,176.23,176.14,17.61997808]
[1752852386909,0.73,176.23,176.14,17.61997808]
[1752852387109,5.67533078,176.21,176.14,23.29728022]
[1752852387323,17.60997808,176.2,176.1,0.71]
[1752852387520,16.90997808,176.16,176.08,5.67923671]
[1752852387709,16.90997808,176.16,176.07,6.4504]
[1752852387710,16.90997808,176.13,176.06,6.38961119]
[1752852387909,16.90997808,176.13,176.08,16.90997808]
[1752852388112,0.7,176.12,176.08,16.90997808]
[1752852388330,19.86294782,176.21,176.11,16.90997808]
[1752852388510,42.90997808,176.18,176.13,16.90997808]
[1752852388830,0.7,176.17,176.09,0.71]
[1752852389011,5.67730214,176.14,176.06,6.38987689]
[1752852389216,0.03,176.08,176.07,0.71]
[1752852389421,0.03,176.08,176.05,5.67988281]
[1752852389617,0.03,176.08,176.06,16.90997808]
[1752852389930,0.03,176.08,176.07,16.90997808]
[1752852390309,0.03,176.08,176.07,17.61997808]
[1752852391037,0.03,176.08,176.04,16.90997808]
[1752852391249,16.90997808,176.06,176.0,0.71]
[1752852391418,16.90997808,176.04,175.99,16.90997808]
[1752852391618,0.7,176.04,175.99,16.90997808]
[1752852391913,16.90997808,176.06,176.01,16.90997808]
[1752852392122,0.03,176.08,176.0,16.90997808]
[1752852392320,0.03,176.08,176.05,16.90997808]
[1752852392523,0.03,176.08,176.06,16.90997808]
[1752852392718,0.03,176.08,176.07,16.90997808]
[1752852393326,0.03,176.08,176.03,0.71]
[1752852393530,0.03,176.08,176.04,0.71]
[1752852393730,0.03,176.08,176.04,16.90997808]
[1752852394119,0.73,176.08,176.02,5.68113959]
[1752852394316,17.63997808,176.08,176.03,16.90997808]
[1752852394637,16.93997808,176.08,176.03,16.90997808]
[1752852394807,17.60997808,176.07,176.03,16.90997808]
[1752852395216,0.7,176.07,176.03,16.90997808]
[1752852395429,16.93997808,176.08,176.03,16.90997808]
[1752852395612,17.63997808,176.08,176.03,16.90997808]
[1752852395811,0.03,176.08,176.05,16.90997808]
[1752852396011,0.03,176.08,176.07,16.90997808]
[1752852396414,0.03,176.08,176.07,17.61997808]
[1752852397340,0.03,176.08,176.07,23.29953734]
[1752852397542,0.03,176.08,176.03,0.71]
[1752852397843,0.7,176.07,176.01,16.90997808]
[1752852398141,0.03,176.08,176.06,16.90997808]
[1752852398343,0.03,176.08,176.07,16.90997808]
[1752852398517,0.03,176.08,176.07,17.61997808]
[1752852399217,0.03,176.08,176.07,23.29953734]
[1752852399827,0.03,176.08,176.07,16.90997808]
[1752852400238,17.63997808,176.08,176.01,0.71]
[1752852400433,16.90997808,176.06,175.98,0.71]
[1752852400626,16.90997808,176.06,176.01,16.90997808]
[1752852400829,17.63997808,176.08,176.04,16.90997808]
[1752852401133,0.03,176.08,176.05,17.61997808]
[1752852401334,0.03,176.08,175.95,24.20808635]
[1752852401335,0.03,176.08,176.07,16.90997808]
[1752852401751,0.03,176.08,176.07,17.61997808]
[1752852402934,0.03,176.08,176.07,0.71]
[1752852403146,0.03,176.08,176.07,17.61997808]
[1752852403349,0.03,176.08,176.07,6.38955926]
[1752852403648,0.03,176.08,176.07,23.29953734]
[1752852404946,0.03,176.15,176.07,37.4984355]
[1752852405152,0.03,176.15,176.14,16.90997808]
[1752852405517,0.03,176.15,176.14,17.58997808]
[1752852406146,0.03,176.15,176.14,0.68]
[1752852406330,0.03,176.15,176.11,0.68]
[1752852406658,0.03,176.15,176.11,16.90997808]
[1752852406868,0.72,176.15,176.11,16.90997808]
[1752852407157,17.62997808,176.15,176.08,0.68]
[1752852407330,17.59997808,176.14,176.09,16.90997808]
[1752852407530,16.90997808,176.14,176.1,16.90997808]
[1752852407739,0.03,176.15,176.11,16.90997808]
[1752852407955,0.03,176.15,176.13,16.90997808]
[1752852408161,0.03,176.15,176.14,16.90997808]
[1752852408329,0.03,176.15,176.09,0.68]
[1752852408654,0.03,176.15,176.14,16.90997808]
[1752852408827,0.03,176.15,176.14,17.58997808]
[1752852409031,0.03,176.15,176.14,16.90997808]
[1752852410518,0.03,176.15,176.14,17.58997808]
[1752852410723,0.03,176.15,176.14,23.26728022]
[1752852411144,0.03,176.19,176.14,86.38371366]
[1752852411324,0.03,176.19,176.18,16.90997808]
[1752852411736,0.03,176.19,176.18,17.58997808]
[1752852412119,0.2,176.22,176.18,0.68]
[1752852412324,0.2,176.22,176.21,16.90997808]
[1752852412544,0.03,176.24,176.21,16.90997808]
[1752852412765,0.03,176.24,176.19,0.68]
[1752852413091,0.03,176.24,176.23,16.90997808]
[1752852413259,0.03,176.24,176.23,17.58997808]
[1752852414474,0.2,176.33,176.23,17.58997808]
[1752852414676,5.87121988,176.33,176.32,16.90997808]
[1752852415169,6.56121988,176.33,176.32,16.90997808]
[1752852415374,0.89,176.33,176.32,16.90997808]
[1752852415577,6.56118471,176.33,176.32,16.90997808]
[1752852416170,0.2,176.33,176.32,16.90997808]
[1752852418170,0.2,176.33,176.32,0.68]
[1752852418360,0.2,176.33,176.32,17.58997808]
[1752852418566,0.69,176.37,176.32,16.90997808]
[1752852418877,0.69,176.36,176.3,5.67212648]
[1752852419075,0.2,176.38,176.35,16.90997808]
[1752852419303,0.2,176.38,176.37,16.90997808]
[1752852420181,0.2,176.38,176.3,5.67212648]
[1752852420373,23.46963685,176.38,176.27,5.6731151]
[1752852420581,0.69,176.37,176.3,16.90997808]
[1752852420768,16.90997808,176.35,176.3,16.90997808]
[1752852420972,0.69,176.34,176.26,6.35335901]
[1752852421168,16.90997808,176.3,176.19,5.67569101]
[1752852421396,16.90997808,176.28,176.24,16.90997808]
[1752852421597,0.69,176.28,176.26,16.90997808]
[1752852421815,0.69,176.31,176.27,16.90997808]
[1752852422106,0.69,176.34,176.3,16.90997808]
[1752852422306,33.69466205,176.32,176.24,0.68]
[1752852422476,16.90997808,176.3,176.22,26.0]
[1752852422671,16.90997808,176.26,176.21,16.90997808]
[1752852422878,16.90997808,176.27,176.22,16.90997808]
[1752852423174,22.58282307,176.28,176.24,16.90997808]
[1752852423384,17.59997808,176.27,176.22,16.90997808]
[1752852423595,17.59997808,176.27,176.19,0.68]
[1752852423596,16.90997808,176.25,176.19,0.68]
[1752852423798,0.69,176.27,176.21,16.90997808]
[1752852423999,5.67284499,176.28,176.23,16.90997808]
[1752852424334,5.67223371,176.3,176.26,16.90997808]
[1752852424497,6.36150635,176.32,176.29,16.90997808]
[1752852424874,0.69,176.32,176.25,5.67372036]
[1752852425115,0.69,176.35,176.26,0.68]
[1752852425402,17.59997808,176.35,176.3,16.90997808]
[1752852425569,17.59997808,176.35,176.23,0.68]
[1752852425570,16.90997808,176.31,176.23,0.68]
[1752852425991,17.59997808,176.31,176.26,16.90997808]
[1752852426188,0.69,176.3,176.26,16.90997808]
[1752852426395,0.69,176.3,176.23,0.68]
[1752852426594,0.69,176.3,176.27,16.90997808]
[1752852427492,0.69,176.33,176.29,16.90997808]
[1752852427687,0.69,176.33,176.25,0.68]
[1752852427688,0.69,176.33,176.3,16.90997808]
[1752852427876,0.69,176.32,176.29,16.90997808]
[1752852428078,0.69,176.31,176.26,16.90997808]
[1752852428279,0.69,176.33,176.29,16.90997808]
[1752852428483,0.69,176.33,176.3,16.90997808]
[1752852428710,5.6708631,176.34,176.3,16.90997808]
[1752852428908,6.36051855,176.36,176.27,5.67295839]
[1752852429110,6.36051855,176.36,176.27,6.35295839]
[1752852429406,1.7822,176.38,176.35,16.90997808]
[1752852429622,1.7822,176.38,176.36,16.90997808]
[1752852429835,8.14181926,176.38,176.35,16.90997808]
[1752852429992,16.90997808,176.36,176.31,16.90997808]
[1752852430316,16.90997808,176.34,176.3,16.90997808]
[1752852430609,0.69,176.33,176.31,16.90997808]
[1752852430781,23.27148443,176.32,176.23,5.67431892]
[1752852430987,16.90997808,176.3,176.26,16.90997808]
[1752852431211,0.69,176.3,176.26,16.90997808]
[1752852431410,16.90997808,176.31,176.22,26.0]
[1752852431411,5.67150635,176.32,176.28,16.90997808]
[1752852431614,5.67150635,176.32,176.29,16.90997808]
[1752852431997,5.67150635,176.32,176.19,19.86491854]
[1752852431998,33.69466205,176.3,176.19,5.67569101]
[1752852432299,16.90997808,176.29,176.24,16.90997808]
[1752852432492,0.69,176.28,176.24,16.90997808]
[1752852432910,17.59997808,176.31,176.27,16.90997808]
[1752852433087,17.59997808,176.31,176.2,26.0]
[1752852433088,23.27221852,176.3,176.22,5.67464423]
[1752852433406,6.36224044,176.3,176.26,16.90997808]
[1752852433617,17.59997808,176.29,176.22,31.67464423]
[1752852433820,0.69,176.29,176.25,16.90997808]
[1752852434027,17.59997808,176.28,176.19,0.68]
[1752852434216,17.59997808,176.28,176.24,16.90997808]
[1752852434399,5.67187337,176.31,176.27,16.90997808]
[1752852434589,0.69,176.33,176.3,16.90997808]
[1752852434791,22.58116279,176.33,176.28,16.90997808]
[1752852434990,0.69,176.36,176.32,16.90997808]
[1752852434991,5.67054153,176.35,176.32,16.90997808]
[1752852435186,7.4518706,176.38,176.34,16.90997808]
[1752852435394,0.2,176.38,176.37,16.90997808]
[1752852435812,0.2,176.38,176.37,17.59997808]
[1752852436216,0.03,176.43,176.4,26.0]
[1752852436396,0.03,176.43,176.42,16.90997808]
[1752852436597,0.03,176.43,176.36,0.69]
[1752852436919,0.03,176.43,176.33,26.0]
[1752852436920,22.60795264,176.43,176.38,16.90997808]
[1752852437227,0.68,176.42,176.38,16.90997808]
[1752852437400,22.60795264,176.43,176.36,5.66994182]
[1752852437401,0.03,176.43,176.41,16.90997808]
[1752852437605,0.03,176.43,176.42,16.90997808]
[1752852437999,0.03,176.43,176.41,16.90997808]
[1752852438216,0.03,176.43,176.42,16.90997808]
[1752852438519,0.03,176.43,176.38,0.69]
[1752852438707,0.03,176.43,176.42,16.90997808]
[1752852440325,0.03,176.43,176.42,22.57826965]
[1752852440708,0.03,176.43,176.42,23.26826965]
[1752852441525,0.03,176.43,176.42,17.59997808]
[1752852441692,0.03,176.43,176.41,16.90997808]
[1752852442115,0.03,176.43,176.39,6.35906462]
[1752852442306,0.03,176.43,176.42,16.90997808]
[1752852442601,0.03,176.43,176.39,5.66906462]
[1752852442906,0.03,176.43,176.4,16.90997808]
[1752852442907,0.71,176.43,176.4,16.90997808]
[1752852443124,0.03,176.43,176.42,16.90997808]
[1752852443294,0.03,176.43,176.37,6.3598985]
[1752852443295,0.03,176.43,176.38,0.69]
[1752852443619,0.68,176.42,176.35,0.69]
[1752852443838,0.68,176.42,176.32,0.69]
[1752852444007,0.68,176.42,176.36,16.90997808]
[1752852444334,5.69800392,176.43,176.39,16.90997808]
[1752852444503,0.03,176.43,176.42,16.90997808]
[1752852445211,0.03,176.43,176.38,5.66951494]
[1752852445408,0.71,176.43,176.37,0.69]
[1752852445606,0.03,176.43,176.41,16.90997808]
[1752852445808,0.03,176.43,176.42,16.90997808]
[1752852446602,0.03,176.43,176.37,6.35983868]
[1752852446798,16.93997808,176.43,176.35,5.67026585]
[1752852447016,16.93997808,176.43,176.38,16.90997808]
[1752852447224,23.25826965,176.42,176.34,6.36083937]
[1752852447428,16.78468397,176.4,176.31,0.69]
[1752852447729,16.90997808,176.39,176.35,16.90997808]
[1752852447905,16.78468397,176.4,176.36,16.90997808]
[1752852447906,33.69466205,176.4,176.36,16.90997808]
[1752852448101,0.68,176.41,176.33,0.69]
[1752852448428,0.68,176.41,176.37,16.90997808]
[1752852448728,16.78468397,176.37,176.3,0.75]
[1752852448917,16.90997808,176.36,176.31,16.90997808]
[1752852449235,0.68,176.35,176.3,0.06]
[1752852449436,0.68,176.34,176.3,0.06]
[1752852449631,16.90997808,176.33,176.3,0.06]
[1752852449810,16.90997808,176.31,176.3,0.06]
[1752852450012,0.68,176.31,176.3,0.06]
[1752852450221,16.90997808,176.33,176.3,0.06]
[1752852450529,17.58997808,176.34,176.3,16.96997808]
[1752852450741,22.45495956,176.36,176.33,16.90997808]
[1752852450940,17.58997808,176.37,176.35,16.90997808]
[1752852450941,0.68,176.37,176.35,16.90997808]
[1752852451248,5.66925562,176.39,176.32,0.69]
[1752852451545,5.66925562,176.39,176.36,16.90997808]
[1752852451748,16.78468397,176.36,176.3,0.06]
[1752852451917,16.90997808,176.31,176.18,0.06]
[1752852452216,16.90997808,176.25,176.2,16.90997808]
[1752852452415,16.78468397,176.29,176.18,0.06]
[1752852452615,0.68,176.24,176.18,0.06]
[1752852452926,16.90997808,176.23,176.18,16.96997808]
[1752852453117,6.3531151,176.27,176.2,16.90997808]
[1752852453433,16.90997808,176.22,176.18,0.06]
[1752852453742,16.90997808,176.19,176.18,0.06]
[1752852454135,16.90997808,176.2,176.18,0.06]
[1752852454354,17.58997808,176.19,176.18,0.06]
[1752852454730,34.37466205,176.19,176.18,0.06]
[1752852455224,40.05035306,176.19,176.18,0.06]
[1752852455418,19.20137808,176.19,176.18,0.06]
[1752852455653,22.58537889,176.2,176.18,0.06]
[1752852455952,5.6744534,176.23,176.19,16.90997808]
[1752852456118,6.3544534,176.23,176.19,16.90997808]
[1752852456320,0.68,176.23,176.19,16.90997808]
[1752852456518,18.39608397,176.24,176.21,16.90997808]
[1752852457045,0.68,176.23,176.18,0.06]
[1752852457229,1.6114,176.24,176.21,16.90997808]
[1752852457432,23.13841377,176.26,176.22,16.90997808]
[1752852457433,0.68,176.26,176.22,16.90997808]
[1752852457631,5.6728477,176.28,176.24,16.90997808]
[1752852457835,22.45753167,176.28,176.19,26.69]
[1752852458150,39.36750975,176.28,176.23,16.90997808]
[1752852458320,17.58997808,176.27,176.22,16.90997808]
[1752852458521,0.68,176.27,176.23,16.90997808]
[1752852458823,15.76626308,176.29,176.25,16.90997808]
[1752852459039,16.44626308,176.29,176.25,16.90997808]
[1752852459218,15.76626308,176.29,176.24,16.90997808]
[1752852459424,17.46468397,176.28,176.23,16.90997808]
[1752852459635,0.68,176.27,176.19,5.67542159]
[1752852459842,0.68,176.27,176.23,16.90997808]
[1752852460224,16.78468397,176.28,176.2,0.69]
[1752852460431,15.76626308,176.29,176.26,16.90997808]
[1752852460630,8.51913349,176.29,176.28,16.90997808]
[1752852461347,2.2546,176.35,176.28,17.59997808]
[1752852461543,7.92519486,176.35,176.31,16.90997808]
[1752852461748,7.92520923,176.35,176.31,16.90997808]
[1752852461948,33.69466205,176.36,176.33,16.90997808]
[1752852461949,16.78468397,176.36,176.33,16.90997808]
[1752852462148,0.68,176.36,176.35,16.90997808]
[1752852462726,0.68,176.36,176.28,16.90997808]
[1752852463026,6.35025169,176.36,176.33,16.90997808]
[1752852463230,0.68,176.35,176.32,16.90997808]
[1752852463648,0.68,176.34,176.32,16.90997808]
[1752852463847,0.68,176.33,176.31,16.90997808]
[1752852464147,0.68,176.32,176.31,16.90997808]
[1752852464530,5.67122401,176.33,176.31,16.90997808]
[1752852464733,0.68,176.35,176.32,16.90997808]
[1752852465050,0.68,176.35,176.33,16.90997808]
[1752852465241,5.67054697,176.35,176.32,16.90997808]
[1752852465550,0.68,176.34,176.27,0.69]
[1752852465753,0.68,176.34,176.32,16.90997808]
[1752852465932,5.67025403,176.36,176.33,16.90997808]
[1752852466127,5.67025403,176.36,176.35,16.90997808]
[1752852466366,22.45460708,176.37,176.35,16.90997808]
[1752852466662,22.45460708,176.37,176.36,16.90997808]
[1752852466864,0.03,176.38,176.36,16.90997808]
[1752852467155,0.03,176.38,176.37,16.90997808]
[1752852467623,0.71,176.38,176.36,16.90997808]
[1752852467830,17.46468397,176.37,176.34,16.90997808]
[1752852468026,33.69466205,176.37,176.23,0.06]
[1752852468262,16.78468397,176.33,176.29,16.90997808]
[1752852468432,0.68,176.32,176.29,16.90997808]
[1752852468626,6.35153383,176.32,176.29,16.90997808]
[1752852468829,5.6709212,176.34,176.31,16.90997808]
[1752852469144,17.46468397,176.33,176.31,16.90997808]
[1752852469349,17.46468397,176.33,176.3,16.90997808]
[1752852469350,0.68,176.32,176.3,16.90997808]
[1752852469647,16.78468397,176.33,176.28,16.90997808]
[1752852469648,17.46468397,176.31,176.28,16.90997808]
[1752852470064,33.69466205,176.29,176.24,16.90997808]
[1752852470238,0.68,176.28,176.25,16.90997808]
[1752852470437,0.68,176.27,176.24,16.90997808]
[1752852470762,16.78468397,176.28,176.26,16.90997808]
[1752852470973,17.46468397,176.28,176.24,16.90997808]
[1752852471137,0.68,176.27,176.23,16.96997808]
[1752852471340,16.78468397,176.25,176.23,16.96997808]
[1752852472051,16.78468397,176.26,176.23,0.06]
[1752852472256,34.37466205,176.24,176.23,0.06]
[1752852472458,17.46468397,176.24,176.23,0.06]
[1752852472660,40.04874284,176.24,176.23,0.06]
[1752852473672,40.04874284,176.24,176.18,16.96997808]
[1752852473673,41.64464284,176.24,176.18,0.06]
[1752852473978,33.69466205,176.19,176.18,0.06]
[1752852474380,34.37466205,176.19,176.18,0.06]
[1752852474843,23.14037498,176.19,176.18,0.06]
[1752852475585,40.05035306,176.19,176.18,0.06]
[1752852476351,23.14037498,176.19,176.18,0.06]
[1752852476878,40.05035306,176.19,176.18,0.06]
[1752852480163,5.67542405,176.2,176.18,0.06]
[1752852480362,5.67472477,176.22,176.19,16.90997808]
[1752852480553,97.67415106,176.25,176.21,16.90997808]
[1752852480762,97.67415106,176.25,176.18,0.06]
[1752852480763,9.47415106,176.25,176.18,0.73]
[1752852481098,15.14795092,176.25,176.24,16.90997808]
[1752852481264,9.47415106,176.25,176.24,16.90997808]
[1752852481459,9.47415106,176.25,176.22,0.67]
[1752852481687,15.14790992,176.25,176.22,0.67]
[1752852481911,9.47415106,176.25,176.24,16.90997808]
[1752852482773,9.47415106,176.25,176.18,11.87998465]
[1752852482971,9.47415106,176.25,176.23,16.90997808]
[1752852482972,15.14798104,176.25,176.23,16.90997808]
[1752852483180,16.78468397,176.23,176.21,16.90997808]
[1752852483884,16.78468397,176.24,176.22,16.90997808]
[1752852484187,9.47415106,176.25,176.23,16.90997808]
[1752852484421,16.78468397,176.24,176.23,16.90997808]
[1752852485370,15.14803712,176.25,176.23,16.90997808]
[1752852485575,15.14803712,176.25,176.2,0.67]
[1752852485576,26.25883503,176.25,176.24,16.90997808]
[1752852485782,9.47415106,176.25,176.24,16.90997808]
[1752852486470,15.1480287,176.25,176.2,0.67]
[1752852486797,15.1480287,176.25,176.22,16.90997808]
[1752852486980,16.78468397,176.23,176.22,16.90997808]
[1752852487376,40.04906481,176.23,176.18,0.06]
[1752852487568,16.78468397,176.21,176.18,16.96997808]
[1752852487764,34.37466205,176.22,176.18,0.06]
[1752852488066,33.69466205,176.19,176.18,0.06]
[1752852488289,16.78468397,176.19,176.18,0.06]
[1752852488488,16.78468397,176.19,176.1,26.0]
[1752852488489,26.0,176.16,176.08,0.2]
[1752852488718,33.69466205,176.11,176.08,0.2]
[1752852488933,5.6785917,176.1,176.08,0.2]
[1752852489088,23.26856978,176.1,176.08,0.2]
[1752852489289,16.78468397,176.09,176.08,0.2]
[1752852489812,33.69466205,176.09,176.08,0.2]
[1752852490114,40.19524525,176.12,176.08,17.10997808]
[1752852490115,16.78468397,176.12,176.08,17.10997808]
[1752852490591,16.78468397,176.12,176.09,16.90997808]
[1752852491212,33.69466205,176.1,176.08,0.2]
[1752852491430,9.22933345,176.18,176.09,17.57997808]
[1752852491587,22.46109832,176.17,176.14,16.90997808]
[1752852491948,23.14109832,176.17,176.14,16.90997808]
[1752852492125,9.22933345,176.18,176.16,16.90997808]
[1752852492428,9.22933345,176.18,176.16,0.67]
[1752852492601,9.22933345,176.18,176.17,17.57997808]
[1752852493522,9.22933345,176.18,176.17,16.90997808]
[1752852493726,9.22933345,176.18,176.17,23.25631343]
[1752852494021,9.22933345,176.18,176.17,17.57997808]
[1752852494201,9.22933345,176.18,176.17,23.25631343]
[1752852496417,9.22933345,176.18,176.14,0.67]
[1752852496612,9.22933345,176.18,176.16,16.90997808]
[1752852496929,15.56534991,176.18,176.16,16.90997808]
[1752852497127,15.56534991,176.18,176.11,26.67]
[1752852497128,22.46101932,176.17,176.15,16.90997808]
[1752852497423,16.78468397,176.17,176.16,16.90997808]
[1752852497723,9.22933345,176.18,176.16,16.90997808]
[1752852497930,9.22933345,176.18,176.17,16.90997808]
[1752852498421,9.22933345,176.18,176.17,17.57997808]
[1752852499215,9.22933345,176.18,176.17,23.25631343]
[1752852500630,16.78468397,176.25,176.17,37.44715182]
[1752852500922,16.78468397,176.25,176.24,16.90997808]
[1752852501424,16.78468397,176.26,176.24,16.90997808]
[1752852501605,16.78468397,176.26,176.25,16.90997808]
[1752852501933,17.44468397,176.26,176.23,16.90997808]
[1752852502128,16.78468397,176.24,176.17,6.34630708]
[1752852502316,16.78468397,176.24,176.21,16.90997808]
[1752852502502,0.66,176.23,176.2,16.90997808]
[1752852502709,0.66,176.22,176.19,16.90997808]
[1752852502910,16.78468397,176.2,176.17,16.90997808]
[1752852503242,5.67601316,176.18,176.17,16.90997808]
[1752852503402,16.78468397,176.18,176.11,0.67]
[1752852503609,0.66,176.17,176.14,16.90997808]
[1752852503809,16.78468397,176.18,176.16,16.90997808]
[1752852504339,16.78468397,176.22,176.17,16.90997808]
[1752852504519,0.66,176.23,176.21,16.90997808]
[1752852504706,16.78468397,176.22,176.21,16.90997808]
[1752852504904,16.78468397,176.24,176.21,11.90369519]
[1752852505143,16.78468397,176.24,176.23,11.90369519]
[1752852505343,16.78468397,176.27,176.23,11.90369519]
[1752852505642,0.69,176.29,176.26,11.90369519]
[1752852505935,0.03,176.29,176.28,11.90369519]
[1752852506106,0.03,176.29,176.28,12.57369519]
[1752852506966,0.03,176.29,176.28,34.2206305]
[1752852507428,0.03,176.29,176.28,39.89342378]
[1752852510123,9.35445852,176.34,176.28,39.89342378]
[1752852510124,9.35445852,176.34,176.28,54.07540698]
[1752852510325,9.35445852,176.34,176.33,16.77531525]
[1752852510514,9.35445852,176.34,176.33,17.44531525]
[1752852511405,0.03,176.34,176.33,23.11649996]
[1752852512133,0.03,176.38,176.37,16.77531525]
[1752852512335,0.03,176.38,176.34,0.67]
[1752852512629,0.03,176.38,176.37,16.77531525]
[1752852513007,0.03,176.38,176.37,17.44531525]
[1752852513407,0.03,176.38,176.37,23.11521375]
[1752852513913,0.03,176.38,176.37,16.77531525]
[1752852514118,0.03,176.38,176.34,0.67]
[1752852514342,0.69,176.38,176.36,16.77531525]
[1752852514710,0.03,176.38,176.35,16.77531525]
[1752852515033,0.69,176.38,176.37,16.77531525]
[1752852515247,16.78468397,176.37,176.31,0.67]
[1752852515406,0.03,176.38,176.36,16.77531525]
[1752852515606,0.03,176.38,176.37,16.77531525]
[1752852515916,0.03,176.38,176.37,17.44531525]
[1752852516317,0.03,176.42,176.37,40.7974305]
[1752852516522,0.03,176.42,176.41,16.77531525]
[1752852517021,0.03,176.42,176.41,17.44531525]
[1752852517536,0.03,176.43,176.42,5.66829157]
[1752852517706,0.03,176.43,176.42,23.11360682]
[1752852519348,0.03,176.43,176.42,17.44531525]
[1752852519647,0.03,176.43,176.42,16.77531525]
[1752852520628,0.03,176.43,176.39,0.67]
[1752852520945,0.66,176.42,176.36,31.66995263]
[1752852521125,0.66,176.42,176.4,16.77531525]
[1752852521547,16.78468397,176.41,176.4,16.77531525]
[1752852521737,16.78468397,176.41,176.34,0.67]
[1752852521968,16.78468397,176.41,176.38,16.77531525]
[1752852522341,17.44468397,176.41,176.39,16.77531525]
[1752852522738,16.78468397,176.39,176.37,16.77531525]
[1752852523067,16.78468397,176.41,176.38,16.77531525]
[1752852523232,17.44468397,176.41,176.38,16.77531525]
[1752852523624,23.11345751,176.41,176.38,16.77531525]
[1752852523835,23.11345751,176.41,176.29,0.67]
[1752852523836,16.78468397,176.39,176.29,0.67]
[1752852524040,16.77531525,176.38,176.34,16.77531525]
[1752852524230,17.44468397,176.37,176.34,16.77531525]
[1752852524639,17.44468397,176.37,176.29,32.34247149]
[1752852525053,17.44468397,176.37,176.34,16.77531525]
[1752852525458,6.33022,176.36,176.33,16.77531525]
[1752852525637,16.78468397,176.37,176.35,16.77531525]
[1752852525833,5.66998257,176.37,176.29,32.34247149]
[1752852526055,6.35998257,176.37,176.33,16.77531525]
[1752852526254,16.78468397,176.35,176.33,16.77531525]
[1752852526437,17.47468397,176.35,176.33,16.77531525]
[1752852526634,16.78468397,176.33,176.3,16.77531525]
[1752852526847,17.47468397,176.33,176.3,16.77531525]
[1752852527041,16.78468397,176.31,176.29,16.77531525]